lending/lending_fUSD_20250706
["ID","MTS","AMOUNT","RATE_DAILY","PERIOD"]
[369987306,1751812248408,-460.0,0.00019178,2]
[369987307,1751812248418,-520.0,0.00019178,2]
[369987308,1751812248429,-460.0,0.00019178,2]
[369987309,1751812248441,-460.0,0.00019178,2]
[369987310,1751812248450,-460.0,0.00019178,2]
[369987311,1751812248459,-460.0,0.00019178,2]
[369987312,1751812248469,-500.0,0.00019178,2]
[369987313,1751812248479,-460.0,0.00019178,2]
[369987314,1751812248488,-431.40476376,0.00019178,2]
[369987315,1751812248498,-460.0,0.00019178,2]
[369987316,1751812248507,-473.12,0.00019178,2]
[369987317,1751812248517,-27704.71236727,0.00019178,2]
[369987318,1751812248530,-506.24110685,0.00019178,2]
[369987326,1751812424203,156.69,0.00013699,2]
[369987337,1751813385066,154.0,0.00030137,120]
[369987339,1751813432149,-538.0,0.0001585,2]
[369987340,1751813432159,-151.0,0.00016998,2]
[369987341,1751813432168,-151.0,0.00017006,2]
[369987342,1751813432178,-151.0,0.00017009,2]
[369987343,1751813432187,-500.0,0.00017064,2]
[369987344,1751813432196,-500.0,0.00017064,2]
[369987345,1751813432205,-3270.32,0.00017403,2]
[369987346,1751813432215,-152.38,0.00017447,2]
[369987347,1751813432224,-217.59,0.00017808,2]
[369987348,1751813432233,-217.59,0.00017817,2]
[369987349,1751813432243,-217.59,0.00017826,2]
[369987350,1751813432253,-217.59,0.00017836,2]
[369987351,1751813432263,-217.59,0.00017845,2]
[369987352,1751813432272,-217.59,0.00017854,2]
[369987353,1751813432282,-250.0,0.0001786,2]
[369987354,1751813432291,-1200.0,0.00017863,2]
[369987355,1751813432532,-217.59,0.00017864,2]
[369987356,1751813432545,-217.59,0.00017873,2]
[369987357,1751813432554,-217.59,0.00017883,2]
[369987358,1751813432564,-217.59,0.00017892,2]
[369987359,1751813432573,-217.59,0.00017901,2]
[369987361,1751813432582,-217.59,0.00017911,2]
[369987363,1751813432592,-300.0,0.00017914,2]
[369987364,1751813432601,-1000.0,0.00017915,2]
[369987366,1751813432610,-217.59,0.0001792,2]
[369987368,1751813432619,-217.59,0.00017929,2]
[369987370,1751813432629,-217.59,0.00017939,2]
[369987372,1751813432639,-217.59,0.00017948,2]
[369987373,1751813432649,-217.59,0.00017958,2]
[369987374,1751813432658,-666.0,0.0001796,2]
[369987375,1751813432667,-217.59,0.00017967,2]
[369987376,1751813432677,-217.59,0.00017976,2]
[369987377,1751813432687,-217.59,0.00017986,2]
[369987378,1751813432696,-1625.17372479,0.00018,2]
[369987379,1751813432706,-170727.60613428,0.00018,2]
[369987380,1751813432717,-151.0,0.00018031,2]
[369987381,1751813432727,-151.0,0.00018031,2]
[369987382,1751813432736,-151.0,0.00018031,2]
[369987383,1751813432745,-151.0,0.00018031,2]
[369987384,1751813432755,-151.0,0.00018031,2]
[369987385,1751813432764,-151.0,0.00018031,2]
[369987386,1751813432774,-151.0,0.00018031,2]
[369987387,1751813432783,-151.0,0.00018031,2]
[369987388,1751813432793,-151.0,0.00018031,2]
[369987389,1751813432802,-201.32232001,0.00018031,2]
[369987390,1751813432811,-11203.44,0.00018042,2]
[369987391,1751813432821,-835.11,0.00018068,2]
[369987392,1751813432831,-155.0,0.000181,2]
[369987393,1751813432840,-200.0,0.00018114,7]
[369987394,1751813432850,-207.4,0.00018218,2]
[369987395,1751813432859,-300.0,0.00018218,2]
[369987396,1751813432868,-159.66,0.00018329,2]
[369987397,1751813432878,-152.0,0.0001859,2]
[369987398,1751813432887,-1200.0,0.000188,6]
[369987399,1751813432897,-2500.0,0.000189,6]
[369987400,1751813432906,-1570.27686206,0.000189,2]
[369987401,1751813432916,-835.11,0.00018971,2]
[369987402,1751813432926,-6276.6359403,0.0001899,2]
[369987403,1751813432937,-200.0,0.00019028,2]
[369987404,1751813432947,-887.0,0.00019029,2]
[369987405,1751813432957,-280.425,0.00019029,2]
[369987406,1751813432966,-1300.757,0.00019029,2]
[369987407,1751813432976,-150.0,0.00019029,2]
[369987408,1751813432985,-200.0,0.00019058,2]
[369987409,1751813432997,-152.843579,0.00019062,2]
[369987410,1751813433007,-360.51095056,0.00019066,2]
[369987411,1751813433016,-150.0,0.0001907,2]
[369987412,1751813433027,-1069.83913831,0.00019078,2]
[369987413,1751813433037,-446.35288926,0.00019078,2]
[369987414,1751813433046,-216.64993516,0.00019078,2]
[369987415,1751813433056,-161.81210246,0.00019078,2]
[369987416,1751813433065,-927.5338,0.00019078,2]
[369987417,1751813433075,-249.7796,0.00019078,2]
[369987418,1751813433084,-2334.8731,0.00019078,2]
[369987419,1751813433094,-160.0,0.00019094,2]
[369987420,1751813433103,-836.76783547,0.00019094,2]
[369987421,1751813433113,-851.0,0.000191,2]
[369987422,1751813433123,-200.0,0.00019116,2]
[369987423,1751813433132,-4405.56,0.0001916,2]
[369987424,1751813433142,-200.0,0.00019163,2]
[369987425,1751813433152,-360.51095056,0.00019165,2]
[369987426,1751813433162,-150.0,0.00019168,2]
[369987427,1751813433171,-150.0,0.00019175,2]
[369987428,1751813433181,-300.0,0.00019177,2]
[369987429,1751813433191,-490.0,0.00019178,2]
[369987430,1751813433201,-460.0,0.00019178,2]
[369987431,1751813433211,-460.0,0.00019178,2]
[369987432,1751813433220,-306.37779252,0.00019178,2]
[369987433,1751813433230,-460.0,0.00019178,2]
[369987434,1751813433239,-460.0,0.00019178,2]
[369987435,1751813433249,-460.0,0.00019178,2]
[369987436,1751813433259,-537.53047418,0.00019178,2]
[369987437,1751813433268,-460.0,0.00019178,2]
[369987438,1751813433277,-460.0,0.00019178,2]
[369987439,1751813433287,-460.0,0.00019178,2]
[369987440,1751813433296,-460.0,0.00019178,2]
[369987441,1751813433306,-460.0,0.00019178,2]
[369987442,1751813433315,-469.58418027,0.00019178,2]
[369987443,1751813433325,-469.96299284,0.00019178,2]
[369987444,1751813433335,-460.0,0.00019178,2]
[369987445,1751813433344,-460.0,0.00019178,2]
[369987446,1751813433354,-249.57241094,0.00019178,2]
[369987447,1751813433363,-460.0,0.00019178,2]
[369987448,1751813433373,-460.0,0.00019178,2]
[369987449,1751813433382,-460.0,0.00019178,2]
[369987450,1751813433392,-489.16173236,0.00019178,2]
[369987451,1751813433401,-200.0,0.00019178,2]
[369987452,1751813433411,-460.0,0.00019178,2]
[369987453,1751813433420,-460.0,0.00019178,2]
[369987454,1751813433431,-460.0,0.00019178,2]
[369987455,1751813433440,-451.641,0.00019178,2]
[369987456,1751813433449,-460.0,0.00019178,2]
[369987457,1751813433459,-331.5706324,0.00019178,2]
[369987458,1751813433468,-463.39766494,0.00019178,2]
[369987459,1751813433478,-460.0,0.00019178,2]
[369987460,1751813433487,-183.99012344,0.00019178,2]
[369987461,1751813433496,-460.0,0.00019178,2]
[369987462,1751813433505,-419.88704351,0.00019178,2]
[369987463,1751813433515,-460.0,0.00019178,2]
[369987464,1751813433524,-460.0,0.00019178,2]
[369987465,1751813433533,-269.30323065,0.00019178,2]
[369987466,1751813433543,-520.0,0.00019178,2]
[369987467,1751813433552,-460.0,0.00019178,2]
[369987468,1751813433562,-460.0,0.00019178,2]
[369987469,1751813433571,-460.0,0.00019178,2]
[369987470,1751813433580,-486.3798358,0.00019178,2]
[369987471,1751813433589,-460.0,0.00019178,2]
[369987472,1751813433598,-460.0,0.00019178,2]
[369987473,1751813433607,-460.0,0.00019178,2]
[369987474,1751813433617,-525.71945938,0.00019178,2]
[369987475,1751813433626,-465.25461402,0.00019178,2]
[369987476,1751813433636,-460.0,0.00019178,2]
[369987477,1751813433645,-460.0,0.00019178,2]
[369987478,1751813433655,-460.0,0.00019178,2]
[369987479,1751813433664,-460.0,0.00019178,2]
[369987480,1751813433674,-460.0,0.00019178,2]
[369987481,1751813433684,-460.0,0.00019178,2]
[369987482,1751813433694,-460.0,0.00019178,2]
[369987483,1751813433703,-460.0,0.00019178,2]
[369987484,1751813433713,-304.19892899,0.00019178,2]
[369987485,1751813433723,-460.0,0.00019178,2]
[369987486,1751813433732,-460.0,0.00019178,2]
[369987487,1751813433741,-460.0,0.00019178,2]
[369987488,1751813433752,-460.0,0.00019178,2]
[369987489,1751813433761,-593.5,0.00019178,2]
[369987490,1751813433770,-460.0,0.00019178,2]
[369987491,1751813433780,-460.0,0.00019178,2]
[369987492,1751813433789,-460.0,0.00019178,2]
[369987493,1751813433799,-460.0,0.00019178,2]
[369987494,1751813433812,-460.0,0.00019178,2]
[369987495,1751813433822,-265.48818772,0.00019178,2]
[369987496,1751813433831,-460.0,0.00019178,2]
[369987497,1751813433841,-460.0,0.00019178,2]
[369987498,1751813433850,-460.0,0.00019178,2]
[369987499,1751813433860,-1000.0,0.00019178,2]
[369987500,1751813433869,-472.3832008,0.00019178,2]
[369987501,1751813433879,-460.0,0.00019178,2]
[369987502,1751813433888,-686.23,0.00019178,2]
[369987503,1751813433897,-460.0,0.00019178,2]
[369987504,1751813433907,-460.0,0.00019178,2]
[369987505,1751813433916,-460.0,0.00019178,2]
[369987506,1751813433926,-460.0,0.00019178,2]
[369987507,1751813433935,-460.0,0.00019178,2]
[369987508,1751813433945,-460.0,0.00019178,2]
[369987509,1751813433955,-460.0,0.00019178,2]
[369987510,1751813433964,-460.0,0.00019178,2]
[369987511,1751813433974,-460.0,0.00019178,2]
[369987512,1751813433984,-460.0,0.00019178,2]
[369987513,1751813433996,-460.0,0.00019178,2]
[369987514,1751813434006,-460.0,0.00019178,2]
[369987515,1751813434016,-460.0,0.00019178,2]
[369987516,1751813434025,-460.0,0.00019178,2]
[369987517,1751813434035,-460.0,0.00019178,2]
[369987518,1751813434046,-460.0,0.00019178,2]
[369987519,1751813434055,-460.0,0.00019178,2]
[369987520,1751813434064,-460.0,0.00019178,2]
[369987521,1751813434075,-460.0,0.00019178,2]
[369987522,1751813434085,-460.0,0.00019178,2]
[369987523,1751813434095,-550.0,0.00019178,2]
[369987524,1751813434105,-460.0,0.00019178,2]
[369987525,1751813434115,-460.0,0.00019178,2]
[369987526,1751813434124,-494.37,0.00019178,2]
[369987527,1751813434134,-460.0,0.00019178,2]
[369987528,1751813434144,-460.0,0.00019178,2]
[369987529,1751813434154,-554.82004587,0.00019178,2]
[369987530,1751813434163,-460.0,0.00019178,2]
[369987531,1751813434173,-460.0,0.00019178,2]
[369987532,1751813434182,-460.0,0.00019178,2]
[369987533,1751813434192,-460.0,0.00019178,2]
[369987534,1751813434201,-460.0,0.00019178,2]
[369987535,1751813434212,-460.0,0.00019178,2]
[369987536,1751813434221,-460.0,0.00019178,2]
[369987537,1751813434231,-460.0,0.00019178,2]
[369987538,1751813434240,-460.0,0.00019178,2]
[369987539,1751813434250,-460.0,0.00019178,2]
[369987540,1751813434260,-301.74161383,0.00019178,2]
[369987541,1751813434269,-176.20139108,0.00019178,2]
[369987542,1751813434290,-283.79860892,0.00019178,2]
[369987543,1751813434300,-460.0,0.00019178,2]
[369987544,1751813434310,-460.0,0.00019178,2]
[369987545,1751813434319,-460.0,0.00019178,2]
[369987546,1751813434328,-460.0,0.00019178,2]
[369987547,1751813434338,-460.0,0.00019178,2]
[369987548,1751813434348,-460.0,0.00019178,2]
[369987549,1751813434357,-460.0,0.00019178,2]
[369987550,1751813434366,-460.0,0.00019178,2]
[369987551,1751813434376,-460.0,0.00019178,2]
[369987552,1751813434386,-460.0,0.00019178,2]
[369987553,1751813434396,-460.0,0.00019178,2]
[369987554,1751813434407,-460.0,0.00019178,2]
[369987555,1751813434416,-460.0,0.00019178,2]
[369987556,1751813434426,-460.0,0.00019178,2]
[369987557,1751813434435,-460.0,0.00019178,2]
[369987558,1751813434444,-460.0,0.00019178,2]
[369987559,1751813434453,-500.0,0.00019178,2]
[369987560,1751813434464,-500.0,0.00019178,2]
[369987561,1751813434474,-460.0,0.00019178,2]
[369987562,1751813434483,-460.0,0.00019178,2]
[369987563,1751813434493,-460.0,0.00019178,2]
[369987564,1751813434502,-460.0,0.00019178,2]
[369987565,1751813434512,-500.0,0.00019178,2]
[369987566,1751813434522,-500.0,0.00019178,2]
[369987567,1751813434531,-460.0,0.00019178,2]
[369987568,1751813434541,-460.0,0.00019178,2]
[369987569,1751813434551,-460.0,0.00019178,2]
[369987570,1751813434560,-460.0,0.00019178,2]
[369987571,1751813434570,-460.0,0.00019178,2]
[369987572,1751813434579,-334.21492099,0.00019178,2]
[369987573,1751813434589,-1122.84,0.00019178,2]
[369987574,1751813434598,-460.0,0.00019178,2]
[369987575,1751813434607,-460.0,0.00019178,2]
[369987576,1751813434617,-460.0,0.00019178,2]
[369987577,1751813434626,-460.0,0.00019178,2]
[369987578,1751813434635,-160.34,0.00019178,2]
[369987579,1751813434645,-500.0,0.00019178,2]
[369987580,1751813434654,-460.0,0.00019178,2]
[369987581,1751813434664,-500.0,0.00019178,2]
[369987582,1751813434673,-200.0,0.00019178,2]
[369987583,1751813434682,-460.0,0.00019178,2]
[369987584,1751813434692,-807.36,0.00019178,2]
[369987585,1751813434701,-460.0,0.00019178,2]
[369987586,1751813434713,-460.0,0.00019178,2]
[369987587,1751813434723,-460.0,0.00019178,2]
[369987588,1751813434944,-460.0,0.00019178,2]
[369987589,1751813434955,-460.0,0.00019178,2]
[369987590,1751813434965,-460.0,0.00019178,2]
[369987591,1751813434975,-953.12,0.00019178,2]
[369987592,1751813434986,-460.0,0.00019178,2]
[369987593,1751813434998,-460.0,0.00019178,2]
[369987594,1751813435008,-460.0,0.00019178,2]
[369987595,1751813435017,-460.0,0.00019178,2]
[369987596,1751813435027,-460.0,0.00019178,2]
[369987597,1751813435036,-460.0,0.00019178,2]
[369987598,1751813435045,-460.0,0.00019178,2]
[369987599,1751813435055,-460.0,0.00019178,2]
[369987600,1751813435065,-460.0,0.00019178,2]
[369987601,1751813435075,-396.45892457,0.00019178,2]
[369987602,1751813435086,-460.0,0.00019178,2]
[369987603,1751813435096,-460.0,0.00019178,2]
[369987604,1751813435105,-460.0,0.00019178,2]
[369987605,1751813435115,-460.0,0.00019178,2]
[369987606,1751813435124,-692.48,0.00019178,2]
[369987607,1751813435134,-460.0,0.00019178,2]
[369987608,1751813435143,-584.79,0.00019178,2]
[369987609,1751813435152,-460.0,0.00019178,2]
[369987610,1751813435162,-460.0,0.00019178,2]
[369987611,1751813435172,-460.0,0.00019178,2]
[369987612,1751813435181,-460.0,0.00019178,2]
[369987613,1751813435191,-460.0,0.00019178,2]
[369987614,1751813435201,-460.0,0.00019178,2]
[369987615,1751813435211,-686.8,0.00019178,2]
[369987616,1751813435220,-645.74,0.00019178,2]
[369987617,1751813435230,-460.0,0.00019178,2]
[369987618,1751813435239,-460.0,0.00019178,2]
[369987619,1751813435249,-691.68,0.00019178,2]
[369987620,1751813435258,-460.0,0.00019178,2]
[369987621,1751813435268,-460.0,0.00019178,2]
[369987622,1751813435277,-577.46,0.00019178,2]
[369987623,1751813435287,-460.0,0.00019178,2]
[369987624,1751813435296,-460.0,0.00019178,2]
[369987625,1751813435306,-728.31,0.00019178,2]
[369987626,1751813435315,-460.0,0.00019178,2]
[369987627,1751813435324,-460.0,0.00019178,2]
[369987628,1751813435333,-460.0,0.00019178,2]
[369987629,1751813435343,-626.13,0.00019178,2]
[369987630,1751813435354,-460.0,0.00019178,2]
[369987631,1751813435364,-460.0,0.00019178,2]
[369987632,1751813435373,-500.0,0.00019178,2]
[369987633,1751813435382,-597.2023614,0.00019178,2]
[369987634,1751813435392,-460.0,0.00019178,2]
[369987635,1751813435402,-460.0,0.00019178,2]
[369987636,1751813435411,-460.0,0.00019178,2]
[369987637,1751813435420,-460.0,0.00019178,2]
[369987638,1751813435429,-460.0,0.00019178,2]
[369987639,1751813435439,-490.0,0.00019178,2]
[369987640,1751813435448,-460.0,0.00019178,2]
[369987641,1751813435458,-772.31,0.00019178,2]
[369987642,1751813435468,-577.01191186,0.00019178,2]
[369987643,1751813435477,-464.94713233,0.00019178,2]
[369987644,1751813435487,-460.0,0.00019178,2]
[369987645,1751813435498,-597.3,0.00019178,2]
[369987646,1751813435509,-460.0,0.00019178,2]
[369987647,1751813435518,-460.0,0.00019178,2]
[369987648,1751813435527,-599.01,0.00019178,2]
[369987649,1751813435536,-500.0,0.00019178,2]
[369987650,1751813435545,-500.0,0.00019178,2]
[369987651,1751813435555,-460.0,0.00019178,2]
[369987652,1751813435565,-460.0,0.00019178,2]
[369987653,1751813435574,-593.31,0.00019178,2]
[369987654,1751813435583,-460.0,0.00019178,2]
[369987655,1751813435593,-460.0,0.00019178,2]
[369987656,1751813435602,-460.0,0.00019178,2]
[369987657,1751813435612,-460.0,0.00019178,2]
[369987658,1751813435621,-460.0,0.00019178,2]
[369987659,1751813435630,-460.0,0.00019178,2]
[369987660,1751813435639,-460.0,0.00019178,2]
[369987661,1751813435649,-460.0,0.00019178,2]
[369987662,1751813435659,-460.0,0.00019178,2]
[369987663,1751813435670,-470.12379111,0.00019178,2]
[369987664,1751813435680,-674.41,0.00019178,2]
[369987665,1751813435691,-491.1,0.00019178,2]
[369987666,1751813435701,-460.0,0.00019178,2]
[369987667,1751813435712,-771.01,0.00019178,2]
[369987668,1751813435721,-460.0,0.00019178,2]
[369987669,1751813435730,-665.2,0.00019178,2]
[369987670,1751813435739,-460.0,0.00019178,2]
[369987671,1751813435749,-460.0,0.00019178,2]
[369987672,1751813435758,-460.0,0.00019178,2]
[369987673,1751813435767,-468.91212514,0.00019178,2]
[369987674,1751813435778,-460.0,0.00019178,2]
[369987675,1751813435790,-460.0,0.00019178,2]
[369987676,1751813435801,-460.0,0.00019178,2]
[369987677,1751813435811,-460.0,0.00019178,2]
[369987678,1751813435821,-460.0,0.00019178,2]
[369987679,1751813435831,-460.0,0.00019178,2]
[369987680,1751813435841,-801.8,0.00019178,2]
[369987681,1751813435851,-460.0,0.00019178,2]
[369987682,1751813435860,-460.0,0.00019178,2]
[369987683,1751813435869,-460.0,0.00019178,2]
[369987684,1751813435879,-460.0,0.00019178,2]
[369987685,1751813435889,-460.0,0.00019178,2]
[369987686,1751813435900,-833.67,0.00019178,2]
[369987687,1751813435909,-460.0,0.00019178,2]
[369987688,1751813435918,-460.0,0.00019178,2]
[369987689,1751813435927,-460.0,0.00019178,2]
[369987690,1751813435937,-581.24,0.00019178,2]
[369987691,1751813435947,-460.0,0.00019178,2]
[369987692,1751813435957,-549.31,0.00019178,2]
[369987693,1751813435967,-460.0,0.00019178,2]
[369987694,1751813435977,-460.0,0.00019178,2]
[369987695,1751813435987,-460.0,0.00019178,2]
[369987696,1751813435998,-460.0,0.00019178,2]
[369987697,1751813436007,-469.65391028,0.00019178,2]
[369987698,1751813436017,-460.0,0.00019178,2]
[369987699,1751813436027,-504.36248336,0.00019178,2]
[369987700,1751813436036,-460.0,0.00019178,2]
[369987701,1751813436046,-460.0,0.00019178,2]
[369987702,1751813436055,-460.0,0.00019178,2]
[369987703,1751813436065,-460.0,0.00019178,2]
[369987704,1751813436075,-460.0,0.00019178,2]
[369987705,1751813436085,-481.07,0.00019178,2]
[369987706,1751813436095,-460.0,0.00019178,2]
[369987707,1751813436104,-722.58,0.00019178,2]
[369987708,1751813436115,-522.61,0.00019178,2]
[369987709,1751813436124,-691.1,0.00019178,2]
[369987710,1751813436134,-673.74,0.00019178,2]
[369987711,1751813436144,-460.0,0.00019178,2]
[369987712,1751813436154,-462.97022678,0.00019178,2]
[369987713,1751813436165,-460.0,0.00019178,2]
[369987714,1751813436174,-544.24,0.00019178,2]
[369987715,1751813436184,-460.0,0.00019178,2]
[369987716,1751813436193,-467.06166969,0.00019178,2]
[369987717,1751813436203,-460.0,0.00019178,2]
[369987718,1751813436214,-460.0,0.00019178,2]
[369987719,1751813436223,-460.0,0.00019178,2]
[369987720,1751813436233,-477.98,0.00019178,2]
[369987721,1751813436242,-246.3949341,0.00019178,2]
[369987722,1751813436252,-460.0,0.00019178,2]
[369987723,1751813436261,-460.0,0.00019178,2]
[369987724,1751813436271,-460.0,0.00019178,2]
[369987725,1751813436280,-1020.77,0.00019178,2]
[369987726,1751813436289,-460.0,0.00019178,2]
[369987727,1751813436299,-545.74,0.00019178,2]
[369987728,1751813436308,-460.0,0.00019178,2]
[369987729,1751813436317,-499.57087923,0.00019178,2]
[369987730,1751813436327,-460.0,0.00019178,2]
[369987731,1751813436336,-460.0,0.00019178,2]
[369987732,1751813436345,-539.37,0.00019178,2]
[369987733,1751813436354,-460.0,0.00019178,2]
[369987734,1751813436364,-490.0,0.00019178,2]
[369987735,1751813436373,-460.0,0.00019178,2]
[369987736,1751813436383,-460.0,0.00019178,2]
[369987737,1751813436392,-460.0,0.00019178,2]
[369987738,1751813436402,-645.33,0.00019178,2]
[369987739,1751813436411,-561.67761785,0.00019178,2]
[369987740,1751813436420,-460.0,0.00019178,2]
[369987741,1751813436430,-460.0,0.00019178,2]
[369987742,1751813436439,-460.0,0.00019178,2]
[369987743,1751813436449,-745.81,0.00019178,2]
[369987744,1751813436458,-460.0,0.00019178,2]
[369987745,1751813436468,-460.0,0.00019178,2]
[369987746,1751813436478,-460.0,0.00019178,2]
[369987747,1751813436488,-460.0,0.00019178,2]
[369987748,1751813436498,-460.0,0.00019178,2]
[369987749,1751813436509,-460.0,0.00019178,2]
[369987750,1751813436518,-460.0,0.00019178,2]
[369987751,1751813436528,-1413.52,0.00019178,2]
[369987752,1751813436537,-65.4888246,0.00019178,2]
[369987753,1751813436560,-394.5111754,0.00019178,2]
[369987754,1751813436570,-460.0,0.00019178,2]
[369987755,1751813436580,-460.0,0.00019178,2]
[369987756,1751813436591,-460.0,0.00019178,2]
[369987757,1751813436600,-460.0,0.00019178,2]
[369987758,1751813436612,-464.3988443,0.00019178,2]
[369987759,1751813436621,-460.0,0.00019178,2]
[369987760,1751813436632,-460.0,0.00019178,2]
[369987761,1751813436643,-460.0,0.00019178,2]
[369987762,1751813436653,-460.0,0.00019178,2]
[369987763,1751813436663,-423.07625553,0.00019178,2]
[369987764,1751813436675,-304.00374447,0.00019178,2]
[369987765,1751813436685,-460.0,0.00019178,2]
[369987766,1751813436695,-460.0,0.00019178,2]
[369987767,1751813436704,-623.41,0.00019178,2]
[369987768,1751813436715,-460.0,0.00019178,2]
[369987769,1751813436724,-460.0,0.00019178,2]
[369987770,1751813436734,-460.0,0.00019178,2]
[369987771,1751813436743,-468.77874181,0.00019178,2]
[369987772,1751813436753,-460.0,0.00019178,2]
[369987773,1751813436764,-268.99751372,0.00019178,2]
[369987774,1751813436779,-191.00248628,0.00019178,2]
[369987775,1751813436789,-460.34,0.00019178,2]
[369987776,1751813436799,-460.0,0.00019178,2]
[369987777,1751813436810,-822.25,0.00019178,2]
[369987778,1751813436822,-460.0,0.00019178,2]
[369987779,1751813436831,-291.89506922,0.00019178,2]
[369987780,1751813437050,-178.95113678,0.00019178,2]
[369987781,1751813437061,-107.72386322,0.00019178,2]
[369987782,1751813437073,-273.26799974,0.00019178,2]
[369987783,1751813437104,-213.42813704,0.00019178,2]
[369987784,1751813437114,-460.0,0.00019178,2]
[369987785,1751813437125,-813.67,0.00019178,2]
[369987786,1751813437135,-460.0,0.00019178,2]
[369987787,1751813437146,-708.77,0.00019178,2]
[369987788,1751813437156,-523.41420006,0.00019178,2]
[369987789,1751813437166,-460.0,0.00019178,2]
[369987790,1751813437176,-460.0,0.00019178,2]
[369987791,1751813437186,-511.55,0.00019178,2]
[369987792,1751813437195,-460.0,0.00019178,2]
[369987793,1751813437204,-354.74013257,0.00019178,2]
[369987794,1751813437315,-105.25986743,0.00019178,2]
[369987795,1751813437325,-460.0,0.00019178,2]
[369987796,1751813437334,-81.27434153,0.00019178,2]
[369987797,1751813437345,-378.72565847,0.00019178,2]
[369987798,1751813437355,-468.81746761,0.00019178,2]
[369987799,1751813437365,-151.59941864,0.00019178,2]
[369987800,1751813437377,-295.99999997,0.00019178,2]
[369987801,1751813437423,-12.40058139,0.00019178,2]
[369987802,1751813437434,-250.1786783,0.00019178,2]
[369987803,1751813437446,-209.8213217,0.00019178,2]
[369987804,1751813437456,-460.0,0.00019178,2]
[369987805,1751813437466,-460.0,0.00019178,2]
[369987806,1751813437476,-195.72795981,0.00019178,2]
[369987807,1751813437494,-200.63531821,0.00019178,2]
[369987808,1751813437503,-460.0,0.00019178,2]
[369987809,1751813437513,-574.90248295,0.00019178,2]
[369987815,1751813438496,-500.0,0.00019177,2]
[369987817,1751813438506,-215.53091646,0.00019177,2]
[369987819,1751813438515,-458.38706896,0.00019177,2]
[369987821,1751813438525,-3387.55587887,0.00019178,2]
[369987823,1751813438536,-2189.6467874,0.00019178,2]
[369987825,1751813438547,-300.0,0.00019178,2]
[369987827,1751813438559,-2515.538259,0.00019178,2]
[369987830,1751813438574,-1912.9,0.00019178,2]
[369987832,1751813438586,-515.04751573,0.00019178,2]
[369987834,1751813438595,-3037.10502527,0.00019178,2]
[369987837,1751813438615,-1155.788706,0.00019178,2]
[369987839,1751813438627,-2333.63492125,0.00019178,2]
[369987841,1751813438638,-50840.47834099,0.00019178,2]
[369987843,1751813438650,-306.77223578,0.00019178,2]
[369987845,1751813438661,-333.34696352,0.00019178,2]
[369987848,1751813438673,-612.44851861,0.00019178,2]
[369987850,1751813438685,-1235.0,0.00019178,2]
[369987852,1751813438696,-17210.24907092,0.00019178,2]
[369987854,1751813438706,-126.63751705,0.00019178,2]
[369987856,1751813438715,-460.0,0.00019178,2]